fUSD/lending_fUSD_20241222
["ID","MTS","AMOUNT","RATE_DAILY","PERIOD"]
[346295830,1734879032713,-5561.0,0.000148,5]
[346295831,1734879032725,-150.0,0.00014877,2]
[346295834,1734879032737,-500.0,0.00015,2]
[346295836,1734879032748,-14670.69869215,0.0001501,2]
[346295838,1734879032759,-420.0,0.00015553,2]
[346295840,1734879032771,-14670.69869215,0.00015621,2]
[346295842,1734879032782,-1263.74,0.00015885,2]
[346295844,1734879032794,-500.0,0.00016164,2]
[346295846,1734879032805,-500.0,0.00016164,2]
[346295848,1734879032816,-500.0,0.00016164,2]
[346295850,1734879032830,-14670.69869215,0.00016233,2]
[346295852,1734879032841,-164.09,0.00016397,2]
[346295854,1734879032853,-1467.9,0.00016684,2]
[346295855,1734879032865,-10542.35,0.00016697,2]
[346295858,1734879032876,-186.64,0.00016712,2]
[346295860,1734879032887,-166.28,0.00016805,2]
[346295862,1734879032899,-269.31,0.00016813,2]
[346295864,1734879032911,-14670.69869215,0.00016844,2]
[346295866,1734879032922,-1000.0,0.00016961,2]
[346295869,1734879032934,-250.0,0.0001697,2]
[346295871,1734879032945,-200.0,0.00016976,2]
[346295873,1734879032957,-13313.78,0.00016993,2]
[346295876,1734879032969,-550.0,0.00017,2]
[346295878,1734879032980,-587.0,0.00017035,2]
[346295880,1734879032991,-285.21,0.00017075,2]
[346295882,1734879033003,-154.41,0.00017081,2]
[346295884,1734879033014,-644.58,0.00017105,2]
[346295886,1734879033026,-154.41,0.0001711,2]
[346295888,1734879033039,-154.41,0.00017138,2]
[346295889,1734879033051,-1000.0,0.00017164,2]
[346295890,1734879033063,-154.41,0.00017167,2]
[346295891,1734879033079,-1141.03,0.00017359,2]
[346295892,1734879033092,-500.0,0.00017377,2]
[346295893,1734879033105,-14670.69869215,0.00017455,2]
[346295894,1734879033118,-500.0,0.00017534,2]
[346295895,1734879033131,-163.85,0.00017701,2]
[346295896,1734879033143,-167.35,0.00017726,2]
[346295897,1734879033156,-300.0,0.00017928,2]
[346295898,1734879033168,-412.63837188,0.00017982,2]
[346295899,1734879033181,-150.0,0.00018,2]
[346295900,1734879033193,-150.0,0.00018,2]
[346295901,1734879033205,-150.0,0.00018,2]
[346295902,1734879033217,-150.0,0.00018,2]
[346295903,1734879033228,-14670.69869215,0.00018066,2]
[346295904,1734879033241,-1263.74,0.00018149,2]
[346295905,1734879033252,-249.12463699,0.00018151,2]
[346295906,1734879033263,-150.0,0.00018154,2]
[346295907,1734879033275,-150.0,0.00018182,2]
[346295908,1734879033288,-166.28,0.00018192,2]
[346295909,1734879033299,-151.0,0.00018251,2]
[346295910,1734879033311,-150.0,0.00018308,2]
[346295911,1734879033323,-151.0,0.00018351,2]
[346295912,1734879033339,-21567.68,0.00018356,2]
[346295913,1734879033351,-150.0,0.00018364,2]
[346295914,1734879033363,-150.0,0.000184,2]
[346295915,1734879033375,-151.0,0.00018451,2]
[346295916,1734879033387,-150.0,0.00018462,2]
[346295917,1734879033399,-363.32062561,0.0001848,2]
[346295918,1734879033411,-164.3,0.00018493,2]
[346295919,1734879033423,-150.0,0.00018545,2]
[346295920,1734879033436,-12529.0,0.00018608,2]
[346295921,1734879033448,-150.0,0.00018615,2]
[346295922,1734879033460,-412.63837188,0.00018621,2]
[346295923,1734879033472,-500.0,0.0001863,2]
[346295924,1734879033485,-823.0,0.00018659,2]
[346295925,1734879033497,-14670.69869215,0.00018678,2]
[346295926,1734879033509,-150.0,0.00018727,2]
[346295927,1734879033520,-150.0,0.00018769,2]
[346295928,1734879033532,-1467.9,0.00018769,2]
[346295929,1734879033543,-150.0,0.000188,2]
[346295930,1734879033558,-3032.0,0.000189,2]
[346295931,1734879033570,-5000.0,0.000189,2]
[346295932,1734879033583,-500.0,0.00018904,2]
[346295933,1734879033595,-150.0,0.00018909,2]
[346295934,1734879033608,-150.0,0.00018923,2]
[346295935,1734879033620,-153.0,0.00018925,2]
[346295936,1734879033632,-153.0,0.00018925,2]
[346295937,1734879033644,-153.0,0.00018925,2]
[346295938,1734879033656,-153.0,0.00018925,2]
[346295939,1734879033667,-153.0,0.00018925,2]
[346295940,1734879033676,-153.0,0.00018925,2]
[346295941,1734879033686,-153.0,0.00018925,2]
[346295942,1734879033695,-153.0,0.00018925,2]
[346295943,1734879033705,-153.0,0.00018925,2]
[346295944,1734879033714,-153.0,0.00018925,2]
[346295945,1734879033723,-153.0,0.00018925,2]
[346295946,1734879033733,-153.0,0.00018925,2]
[346295947,1734879034033,-153.0,0.00018925,2]
[346295948,1734879034049,-153.0,0.00018925,2]
[346295949,1734879034059,-153.0,0.00018925,2]
[346295950,1734879034068,-153.0,0.00018925,2]
[346295951,1734879034079,-153.0,0.00018925,2]
[346295952,1734879034089,-153.0,0.00018925,2]
[346295953,1734879034098,-153.0,0.00018925,2]
[346295954,1734879034107,-153.0,0.00018925,2]
[346295955,1734879034116,-153.0,0.00018925,2]
[346295956,1734879034125,-153.0,0.00018925,2]
[346295957,1734879034134,-153.0,0.00018925,2]
[346295958,1734879034144,-153.0,0.00018925,2]
[346295959,1734879034153,-153.0,0.00018925,2]
[346295960,1734879034163,-153.0,0.00018925,2]
[346295961,1734879034172,-153.0,0.00018925,2]
[346295962,1734879034181,-153.0,0.00018925,2]
[346295963,1734879034191,-153.0,0.00018925,2]
[346295964,1734879034200,-153.0,0.00018925,2]
[346295965,1734879034209,-153.0,0.00018925,2]
[346295966,1734879034218,-153.0,0.00018925,2]
[346295967,1734879034227,-153.0,0.00018925,2]
[346295968,1734879034238,-153.0,0.00018925,2]
[346295969,1734879034248,-153.0,0.00018925,2]
[346295970,1734879034257,-153.0,0.00018925,2]
[346295971,1734879034267,-153.0,0.00018925,2]
[346295972,1734879034277,-153.0,0.00018925,2]
[346295973,1734879034285,-153.0,0.00018925,2]
[346295974,1734879034295,-153.0,0.00018925,2]
[346295975,1734879034305,-153.0,0.00018925,2]
[346295976,1734879034314,-153.0,0.00018925,2]
[346295977,1734879034324,-153.0,0.00018925,2]
[346295978,1734879034338,-153.0,0.00018925,2]
[346295979,1734879034348,-153.0,0.00018925,2]
[346295980,1734879034357,-153.0,0.00018925,2]
[346295981,1734879034366,-153.0,0.00018925,2]
[346295982,1734879034375,-153.0,0.00018925,2]
[346295983,1734879034384,-153.0,0.00018925,2]
[346295984,1734879034393,-153.0,0.00018925,2]
[346295985,1734879034403,-153.0,0.00018925,2]
[346295986,1734879034412,-153.0,0.00018925,2]
[346295987,1734879034421,-153.0,0.00018925,2]
[346295988,1734879034430,-153.0,0.00018925,2]
[346295989,1734879034439,-153.0,0.00018925,2]
[346295990,1734879034448,-153.0,0.00018925,2]
[346295991,1734879034458,-153.0,0.00018925,2]
[346295992,1734879034467,-153.0,0.00018925,2]
[346295993,1734879034479,-153.0,0.00018925,2]
[346295994,1734879034490,-153.0,0.00018926,2]
[346295995,1734879034499,-153.0,0.00018926,2]
[346295996,1734879034509,-153.0,0.00018926,2]
[346295997,1734879034518,-153.0,0.00018926,2]
[346295998,1734879034527,-153.0,0.00018926,2]
[346295999,1734879034536,-153.0,0.00018926,2]
[346296000,1734879034546,-153.0,0.00018926,2]
[346296001,1734879034556,-153.0,0.00018926,2]
[346296002,1734879034566,-153.0,0.00018926,2]
[346296003,1734879034575,-153.0,0.00018926,2]
[346296004,1734879034591,-153.0,0.00018926,2]
[346296005,1734879034602,-153.0,0.00018926,2]
[346296006,1734879034611,-153.0,0.00018926,2]
[346296007,1734879034621,-153.0,0.00018926,2]
[346296008,1734879034630,-153.0,0.00018926,2]
[346296009,1734879034639,-153.0,0.00018926,2]
[346296010,1734879034649,-153.0,0.00018926,2]
[346296011,1734879034658,-153.0,0.00018926,2]
[346296012,1734879034668,-153.0,0.00018926,2]
[346296013,1734879034676,-153.0,0.00018926,2]
[346296014,1734879034685,-153.0,0.00018926,2]
[346296015,1734879034696,-153.0,0.00018926,2]
[346296016,1734879034705,-153.0,0.00018926,2]
[346296017,1734879034715,-153.0,0.00018926,2]
[346296018,1734879034724,-153.0,0.00018926,2]
[346296019,1734879034733,-153.0,0.00018926,2]
[346296020,1734879034743,-153.0,0.00018926,2]
[346296021,1734879034752,-153.0,0.00018926,2]
[346296022,1734879034760,-153.0,0.00018926,2]
[346296023,1734879034770,-153.0,0.00018926,2]
[346296024,1734879034779,-153.0,0.00018926,2]
[346296025,1734879034788,-153.0,0.00018926,2]
[346296026,1734879034798,-153.0,0.00018926,2]
[346296027,1734879034807,-153.0,0.00018926,2]
[346296028,1734879034819,-153.0,0.00018926,2]
[346296029,1734879034830,-153.0,0.00018926,2]
[346296030,1734879034841,-153.0,0.00018926,2]
[346296031,1734879034850,-153.0,0.00018926,2]
[346296032,1734879034859,-153.0,0.00018926,2]
[346296033,1734879034868,-153.0,0.00018926,2]
[346296034,1734879034879,-153.0,0.00018926,2]
[346296035,1734879034888,-153.0,0.00018926,2]
[346296036,1734879034898,-153.0,0.00018926,2]
[346296037,1734879034907,-153.0,0.00018926,2]
[346296038,1734879034917,-153.0,0.00018926,2]
[346296039,1734879034926,-153.0,0.00018926,2]
[346296040,1734879034935,-153.0,0.00018926,2]
[346296041,1734879034944,-153.0,0.00018926,2]
[346296042,1734879034954,-153.0,0.00018926,2]
[346296043,1734879034963,-153.0,0.00018926,2]
[346296044,1734879034972,-153.0,0.00018926,2]
[346296045,1734879034982,-153.0,0.00018926,2]
[346296046,1734879034991,-153.0,0.00018926,2]
[346296047,1734879035000,-153.0,0.00018926,2]
[346296048,1734879035009,-153.0,0.00018926,2]
[346296049,1734879035019,-153.0,0.00018926,2]
[346296050,1734879035028,-153.0,0.00018926,2]
[346296051,1734879035037,-153.0,0.00018926,2]
[346296052,1734879035046,-153.0,0.00018926,2]
[346296053,1734879035055,-153.0,0.00018926,2]
[346296054,1734879035065,-153.0,0.00018926,2]
[346296055,1734879035076,-153.0,0.00018926,2]
[346296056,1734879035090,-153.0,0.00018926,2]
[346296057,1734879035100,-153.0,0.00018926,2]
[346296058,1734879035110,-153.0,0.00018926,2]
[346296059,1734879035119,-153.0,0.00018926,2]
[346296060,1734879035129,-153.0,0.00018926,2]
[346296061,1734879035138,-153.0,0.00018926,2]
[346296062,1734879035148,-153.0,0.00018926,2]
[346296063,1734879035158,-153.0,0.00018926,2]
[346296064,1734879035168,-153.0,0.00018926,2]
[346296065,1734879035177,-221.7158,0.00018964,2]
[346296066,1734879035187,-8008.4165,0.00018978,2]
[346296067,1734879035196,-10197.08122066,0.00018991,2]
[346296068,1734879035205,-16013.56622198,0.00019,2]
[346296069,1734879035215,-30000.0,0.00019,2]
[346296070,1734879035224,-600.0,0.00019,2]
[346296071,1734879035234,-402.295,0.00019,2]
[346296072,1734879035244,-152.0,0.00019027,3]
[346296073,1734879035254,-199.762,0.00019058,2]
[346296074,1734879035265,-150.0,0.00019077,2]
[346296075,1734879035274,-174.96309881,0.00019078,2]
[346296076,1734879035283,-165.47292254,0.00019078,2]
[346296077,1734879035293,-37045.4753,0.00019078,2]
[346296078,1734879035302,-150.0,0.00019091,2]
[346296079,1734879035312,-10197.08122065,0.00019092,2]
[346296080,1734879035322,-164.09,0.00019129,2]
[346296081,1734879035335,-736.71526164,0.00019168,2]
[346296082,1734879035345,-150.96,0.00019168,2]
[346296083,1734879035354,-150.96,0.00019168,2]
[346296084,1734879035363,-500.0,0.00019173,2]
[346296085,1734879035373,-500.46287762,0.00019173,2]
[346296086,1734879035382,-150.0,0.00019173,2]
[346296087,1734879035391,-261.45428773,0.00019173,2]
[346296088,1734879035401,-2795.38730086,0.00019177,2]
[346296089,1734879035417,-500.0,0.00019178,2]
[346296090,1734879035426,-500.0,0.00019178,2]
[346296091,1734879035435,-425.479129,0.00019178,2]
[346296092,1734879035444,-162.552894,0.00019178,2]
[346296093,1734879035455,-3346.737601,0.00019178,2]
[346296094,1734879035465,-500.0,0.00019178,2]
[346296095,1734879035475,-500.0,0.00019178,2]
[346296096,1734879035484,-629.31,0.00019178,2]
[346296097,1734879035498,-510.64178141,0.00019178,2]
[346296098,1734879035507,-519.5511674,0.00019178,2]
[346296099,1734879035517,-365.32886941,0.00019178,2]
[346296100,1734879035527,-500.0,0.00019178,2]
[346296101,1734879035536,-500.0,0.00019178,2]
[346296102,1734879035546,-500.0,0.00019178,2]
[346296103,1734879035557,-500.0,0.00019178,2]
[346296104,1734879035568,-500.0,0.00019178,2]
[346296105,1734879035581,-445.8,0.00019178,2]
[346296106,1734879035590,-500.0,0.00019178,2]
[346296107,1734879035600,-551.58,0.00019178,2]
[346296108,1734879035610,-500.0,0.00019178,2]
[346296109,1734879035619,-500.0,0.00019178,2]
[346296110,1734879035628,-500.0,0.00019178,2]
[346296111,1734879035638,-460.66,0.00019178,2]
[346296112,1734879035647,-500.0,0.00019178,2]
[346296113,1734879035657,-500.0,0.00019178,2]
[346296114,1734879035666,-500.0,0.00019178,2]
[346296115,1734879035675,-500.0,0.00019178,2]
[346296116,1734879035684,-500.0,0.00019178,2]
[346296117,1734879035694,-500.0,0.00019178,2]
[346296118,1734879035703,-500.0,0.00019178,2]
[346296119,1734879035713,-500.0,0.00019178,2]
[346296120,1734879035723,-592.04002898,0.00019178,2]
[346296121,1734879035732,-510.2096869,0.00019178,2]
[346296122,1734879035742,-500.0,0.00019178,2]
[346296123,1734879035751,-500.0,0.00019178,2]
[346296124,1734879035760,-500.0,0.00019178,2]
[346296125,1734879035769,-500.0,0.00019178,2]
[346296126,1734879035780,-500.0,0.00019178,2]
[346296127,1734879035789,-162.49916291,0.00019178,2]
[346296128,1734879035799,-500.0,0.00019178,2]
[346296129,1734879035808,-500.0,0.00019178,2]
[346296130,1734879035818,-338.00958299,0.00019178,2]
[346296131,1734879035830,-500.0,0.00019178,2]
[346296132,1734879035839,-500.0,0.00019178,2]
[346296133,1734879035849,-500.0,0.00019178,2]
[346296134,1734879035858,-500.0,0.00019178,2]
[346296135,1734879035868,-500.0,0.00019178,2]
[346296136,1734879035877,-500.0,0.00019178,2]
[346296137,1734879035886,-500.0,0.00019178,2]
[346296138,1734879035896,-231.69,0.00019178,2]
[346296139,1734879035905,-500.0,0.00019178,2]
[346296140,1734879035915,-70.79438816,0.00019178,2]
[346296141,1734879035932,-429.20561184,0.00019178,2]
[346296142,1734879035942,-500.0,0.00019178,2]
[346296143,1734879035951,-500.0,0.00019178,2]
[346296144,1734879035960,-500.0,0.00019178,2]
[346296145,1734879035970,-500.0,0.00019178,2]
[346296146,1734879035980,-500.0,0.00019178,2]
[346296147,1734879035989,-501.37297597,0.00019178,2]
[346296148,1734879035999,-500.0,0.00019178,2]
[346296149,1734879036009,-500.0,0.00019178,2]
[346296150,1734879036018,-1074.87,0.00019178,2]
[346296151,1734879036027,-377.74797044,0.00019178,2]
[346296152,1734879036037,-500.0,0.00019178,2]
[346296153,1734879036047,-500.0,0.00019178,2]
[346296154,1734879036056,-500.0,0.00019178,2]
[346296155,1734879036066,-500.0,0.00019178,2]
[346296156,1734879036075,-500.0,0.00019178,2]
[346296157,1734879036088,-500.0,0.00019178,2]
[346296158,1734879036097,-500.0,0.00019178,2]
[346296159,1734879036106,-500.0,0.00019178,2]
[346296160,1734879036116,-500.0,0.00019178,2]
[346296161,1734879036125,-500.0,0.00019178,2]
[346296162,1734879036134,-500.0,0.00019178,2]
[346296163,1734879036143,-500.0,0.00019178,2]
[346296164,1734879036153,-500.0,0.00019178,2]
[346296165,1734879036162,-500.0,0.00019178,2]
[346296166,1734879036171,-813.85,0.00019178,2]
[346296167,1734879036181,-500.0,0.00019178,2]
[346296168,1734879036191,-500.0,0.00019178,2]
[346296169,1734879036200,-500.0,0.00019178,2]
[346296170,1734879036209,-500.0,0.00019178,2]
[346296171,1734879036219,-500.0,0.00019178,2]
[346296172,1734879036228,-500.0,0.00019178,2]
[346296173,1734879036238,-500.0,0.00019178,2]
[346296174,1734879036247,-595.53606545,0.00019178,2]
[346296175,1734879036256,-500.0,0.00019178,2]
[346296176,1734879036266,-500.0,0.00019178,2]
[346296177,1734879036275,-500.0,0.00019178,2]
[346296178,1734879036284,-500.0,0.00019178,2]
[346296179,1734879036294,-500.0,0.00019178,2]
[346296180,1734879036303,-506.65,0.00019178,2]
[346296181,1734879036312,-500.0,0.00019178,2]
[346296182,1734879036322,-500.0,0.00019178,2]
[346296183,1734879036334,-500.0,0.00019178,2]
[346296184,1734879036344,-500.0,0.00019178,2]
[346296185,1734879036353,-278.28,0.00019178,2]
[346296186,1734879036362,-500.0,0.00019178,2]
[346296187,1734879036372,-551.61,0.00019178,2]
[346296188,1734879036381,-258.71805189,0.00019178,2]
[346296189,1734879036391,-1209.24,0.00019178,2]
[346296190,1734879036400,-500.0,0.00019178,2]
[346296191,1734879036409,-500.0,0.00019178,2]
[346296192,1734879036418,-500.0,0.00019178,2]
[346296193,1734879036428,-500.60116944,0.00019178,2]
[346296194,1734879036437,-500.0,0.00019178,2]
[346296195,1734879036446,-500.0,0.00019178,2]
[346296196,1734879036455,-500.0,0.00019178,2]
[346296197,1734879036464,-500.0,0.00019178,2]
[346296198,1734879036474,-500.0,0.00019178,2]
[346296199,1734879036486,-500.0,0.00019178,2]
[346296200,1734879036495,-500.0,0.00019178,2]
[346296201,1734879036504,-500.87361256,0.00019178,2]
[346296202,1734879036514,-500.0,0.00019178,2]
[346296203,1734879036523,-500.0,0.00019178,2]
[346296204,1734879036532,-500.0,0.00019178,2]
[346296205,1734879036541,-500.0,0.00019178,2]
[346296206,1734879036551,-894.45,0.00019178,2]
[346296207,1734879036561,-500.0,0.00019178,2]
[346296208,1734879036571,-500.0,0.00019178,2]
[346296209,1734879036584,-503.98611065,0.00019178,2]
[346296210,1734879036593,-501.52661943,0.00019178,2]
[346296211,1734879036603,-500.0,0.00019178,2]
[346296212,1734879036612,-500.0,0.00019178,2]
[346296213,1734879036622,-500.0,0.00019178,2]
[346296214,1734879036632,-500.0,0.00019178,2]
[346296215,1734879036641,-500.0,0.00019178,2]
[346296216,1734879036651,-500.0,0.00019178,2]
[346296217,1734879036660,-500.0,0.00019178,2]
[346296218,1734879036670,-507.49800966,0.00019178,2]
[346296219,1734879036679,-500.0,0.00019178,2]
[346296220,1734879036689,-500.0,0.00019178,2]
[346296221,1734879036698,-500.0,0.00019178,2]
[346296222,1734879036708,-500.0,0.00019178,2]
[346296223,1734879036717,-500.0,0.00019178,2]
[346296224,1734879036726,-500.0,0.00019178,2]
[346296225,1734879036735,-500.0,0.00019178,2]
[346296226,1734879036744,-500.0,0.00019178,2]
[346296227,1734879036753,-500.0,0.00019178,2]
[346296228,1734879036762,-500.0,0.00019178,2]
[346296229,1734879036771,-500.0,0.00019178,2]
[346296230,1734879036781,-495.77971374,0.00019178,2]
[346296231,1734879036791,-879.34,0.00019178,2]
[346296232,1734879036799,-500.0,0.00019178,2]
[346296233,1734879036809,-500.0,0.00019178,2]
[346296234,1734879036818,-500.0,0.00019178,2]
[346296235,1734879036829,-500.0,0.00019178,2]
[346296236,1734879036838,-500.0,0.00019178,2]
[346296237,1734879036847,-500.0,0.00019178,2]
[346296238,1734879036857,-500.0,0.00019178,2]
[346296239,1734879036867,-500.0,0.00019178,2]
[346296240,1734879036876,-229.33927114,0.00019178,2]
[346296241,1734879036885,-546.04,0.00019178,2]
[346296242,1734879036895,-500.0,0.00019178,2]
[346296243,1734879036904,-500.0,0.00019178,2]
[346296244,1734879036913,-536.16,0.00019178,2]
[346296245,1734879036923,-500.0,0.00019178,2]
[346296246,1734879036933,-530.55,0.00019178,2]
[346296247,1734879036942,-500.0,0.00019178,2]
[346296248,1734879036951,-502.12321277,0.00019178,2]
[346296249,1734879036960,-500.0,0.00019178,2]
[346296250,1734879036970,-500.0,0.00019178,2]
[346296251,1734879036979,-500.0,0.00019178,2]
[346296252,1734879036990,-500.0,0.00019178,2]
[346296253,1734879036999,-500.0,0.00019178,2]
[346296254,1734879037008,-500.0,0.00019178,2]
[346296255,1734879037018,-500.0,0.00019178,2]
[346296256,1734879037027,-500.0,0.00019178,2]
[346296257,1734879037036,-500.0,0.00019178,2]
[346296258,1734879037045,-500.0,0.00019178,2]
[346296259,1734879037055,-500.0,0.00019178,2]
[346296260,1734879037065,-500.0,0.00019178,2]
[346296261,1734879037074,-500.0,0.00019178,2]
[346296262,1734879037088,-500.0,0.00019178,2]
[346296263,1734879037097,-500.0,0.00019178,2]
[346296264,1734879037106,-515.81,0.00019178,2]
[346296265,1734879037116,-500.0,0.00019178,2]
[346296266,1734879037126,-500.0,0.00019178,2]
[346296267,1734879037136,-504.64881329,0.00019178,2]
[346296268,1734879037145,-500.0,0.00019178,2]
[346296269,1734879037301,-500.0,0.00019178,2]
[346296270,1734879037311,-500.0,0.00019178,2]
[346296271,1734879037320,-500.0,0.00019178,2]
[346296272,1734879037333,-500.0,0.00019178,2]
[346296273,1734879037342,-500.0,0.00019178,2]
[346296274,1734879037352,-500.0,0.00019178,2]
[346296275,1734879037361,-500.0,0.00019178,2]
[346296276,1734879037370,-500.0,0.00019178,2]
[346296277,1734879037380,-500.0,0.00019178,2]
[346296278,1734879037389,-500.0,0.00019178,2]
[346296279,1734879037398,-500.0,0.00019178,2]
[346296280,1734879037407,-500.0,0.00019178,2]
[346296281,1734879037417,-500.62139035,0.00019178,2]
[346296282,1734879037426,-500.0,0.00019178,2]
[346296283,1734879037435,-500.0,0.00019178,2]
[346296284,1734879037444,-500.0,0.00019178,2]
[346296285,1734879037453,-500.0,0.00019178,2]
[346296286,1734879037462,-500.0,0.00019178,2]
[346296287,1734879037471,-500.0,0.00019178,2]
[346296288,1734879037481,-500.81470305,0.00019178,2]
[346296289,1734879037494,-500.0,0.00019178,2]
[346296290,1734879037503,-500.0,0.00019178,2]
[346296291,1734879037513,-871.25,0.00019178,2]
[346296292,1734879037522,-500.41845796,0.00019178,2]
[346296293,1734879037531,-500.0,0.00019178,2]
[346296294,1734879037540,-500.0,0.00019178,2]
[346296295,1734879037552,-500.0,0.00019178,2]
[346296296,1734879037563,-500.58424444,0.00019178,2]
[346296297,1734879037572,-500.0,0.00019178,2]
[346296298,1734879037586,-500.0,0.00019178,2]
[346296299,1734879037595,-500.0,0.00019178,2]
[346296300,1734879037604,-500.0,0.00019178,2]
[346296301,1734879037614,-500.0,0.00019178,2]
[346296303,1734879037624,-500.0,0.00019178,2]
[346296304,1734879037633,-345.72118533,0.00019178,2]
[346296305,1734879037643,-500.0,0.00019178,2]
[346296306,1734879037652,-500.0,0.00019178,2]
[346296307,1734879037661,-500.0,0.00019178,2]
[346296308,1734879037671,-500.0,0.00019178,2]
[346296309,1734879037680,-500.0,0.00019178,2]
[346296310,1734879037690,-500.0,0.00019178,2]
[346296311,1734879037699,-501.10764903,0.00019178,2]
[346296312,1734879037708,-500.0,0.00019178,2]
[346296313,1734879037718,-500.0,0.00019178,2]
[346296314,1734879037727,-500.0,0.00019178,2]
[346296315,1734879037737,-500.0,0.00019178,2]
[346296316,1734879037746,-500.0,0.00019178,2]
[346296317,1734879037756,-500.0,0.00019178,2]
[346296318,1734879037766,-500.0,0.00019178,2]
[346296319,1734879037775,-500.0,0.00019178,2]
[346296320,1734879037785,-933.65,0.00019178,2]
[346296321,1734879037794,-494.44339448,0.00019178,2]
[346296322,1734879037803,-500.0,0.00019178,2]
[346296323,1734879037813,-500.0,0.00019178,2]
[346296324,1734879037823,-539.86,0.00019178,2]
[346296325,1734879037834,-510.04,0.00019178,2]
[346296326,1734879037844,-504.18961105,0.00019178,2]
[346296327,1734879037853,-500.0,0.00019178,2]
[346296328,1734879037862,-500.0,0.00019178,2]
[346296329,1734879037872,-500.0,0.00019178,2]
[346296330,1734879037882,-500.0,0.00019178,2]
[346296331,1734879037891,-506.91138185,0.00019178,2]
[346296332,1734879037900,-500.0,0.00019178,2]
[346296333,1734879037909,-500.0,0.00019178,2]
[346296334,1734879037919,-500.0,0.00019178,2]
[346296335,1734879037928,-500.0,0.00019178,2]
[346296336,1734879037939,-574.45,0.00019178,2]
[346296337,1734879037948,-500.0,0.00019178,2]
[346296338,1734879037957,-500.0,0.00019178,2]
[346296339,1734879037967,-500.0,0.00019178,2]
[346296340,1734879037976,-500.0,0.00019178,2]
[346296341,1734879037986,-500.0,0.00019178,2]
[346296342,1734879037996,-500.0,0.00019178,2]
[346296343,1734879038006,-502.60396915,0.00019178,2]
[346296344,1734879038015,-500.0,0.00019178,2]
[346296345,1734879038025,-500.0,0.00019178,2]
[346296346,1734879038034,-500.0,0.00019178,2]
[346296347,1734879038044,-501.831517,0.00019178,2]
[346296348,1734879038054,-500.0,0.00019178,2]
[346296349,1734879038063,-500.0,0.00019178,2]
[346296350,1734879038073,-500.0,0.00019178,2]
[346296351,1734879038084,-500.0,0.00019178,2]
[346296352,1734879038094,-500.0,0.00019178,2]
[346296353,1734879038104,-500.0,0.00019178,2]
[346296354,1734879038113,-500.0,0.00019178,2]
[346296355,1734879038123,-500.0,0.00019178,2]
[346296356,1734879038132,-500.0,0.00019178,2]
[346296357,1734879038142,-500.0,0.00019178,2]
[346296358,1734879038151,-500.0,0.00019178,2]
[346296359,1734879038160,-500.0,0.00019178,2]
[346296360,1734879038170,-500.0,0.00019178,2]